bitfinex/quotes_ETHUSD_20230831
["timestamp","ask_amount","ask_price","bid_price","bid_amount"]
[1693517373070,9.19617818,1645.6,1645.2,12.0448233]
[1693517373545,9.19617818,1645.6,1645.2,7.4862433]
[1693517374251,9.19617818,1645.6,1645.2,2.9277433]
[1693517374252,13.75381818,1645.6,1645.2,2.9277433]
[1693517374573,1.37538182,1645.5,1645.2,7.4864133]
[1693517374746,15.01038714,1645.6,1645.2,7.4864133]
[1693517375147,13.75381818,1645.6,1645.2,7.4864133]
[1693517375455,9.19617818,1645.6,1645.2,7.4864133]
[1693517376085,9.19617818,1645.6,1645.2,12.0451233]
[1693517376376,4.63853818,1645.6,1645.2,12.0451233]
[1693517377379,3.24762844,1645.6,1645.3,2.9277433]
[1693517377547,3.24762844,1645.6,1645.4,9.11632]
[1693517377872,2.3067,1645.6,1645.4,9.11632]
[1693517378278,3.24762844,1645.6,1645.4,9.11632]
[1693517378584,2.3067,1645.6,1645.4,9.11632]
[1693517379964,3.53732844,1645.7,1645.5,2.9277433]
[1693517380175,3.53732844,1645.7,1645.6,4.5576]
[1693517380376,3.53732844,1645.7,1645.5,12.5233833]
[1693517380577,0.94092844,1645.8,1645.6,10.36753833]
[1693517380790,0.94092844,1645.8,1645.6,9.1152]
[1693517381476,0.94092844,1645.8,1645.6,4.5576]
[1693517382646,11.7039774,1645.9,1645.6,4.5576]
[1693517384203,7.1471974,1645.9,1645.6,9.1152]
[1693517384899,5.89062844,1645.9,1645.6,9.1152]
[1693517385061,5.89062844,1645.9,1645.6,10.82326833]
[1693517385673,5.89062844,1645.9,1645.6,9.1152]
[1693517386207,5.89062844,1645.9,1645.6,4.5576]
[1693517386707,10.44744844,1645.9,1645.6,4.5576]
[1693517387408,19.56103844,1645.9,1645.4,4.55811]
[1693517387618,0.94092844,1645.8,1645.4,7.4858533]
[1693517387833,7.45423228,1645.8,1645.4,12.0440133]
[1693517388118,5.49812844,1645.8,1645.4,12.0440133]
[1693517388488,10.05532844,1645.8,1645.4,7.4858533]
[1693517388819,10.05532844,1645.8,1645.4,2.9277433]
[1693517390019,10.05532844,1645.8,1645.4,7.4857533]
[1693517390170,10.05532844,1645.8,1645.4,2.9277433]
[1693517390369,12.13716518,1645.8,1645.4,7.4858833]
[1693517390571,12.13716518,1645.8,1645.4,7.4857533]
[1693517391228,7.57996518,1645.8,1645.4,7.4857533]
[1693517391405,5.49812844,1645.8,1645.4,7.4857533]
[1693517392728,5.49797844,1645.8,1645.4,7.4857533]
[1693517393434,10.05502844,1645.8,1645.4,2.9277433]
[1693517394125,5.49797844,1645.8,1645.4,7.4856733]
[1693517394328,5.49797844,1645.8,1645.4,12.0438333]
[1693517394527,5.49797844,1645.8,1645.4,7.4856733]
[1693517394973,5.49797844,1645.8,1645.4,2.9277433]
[1693517395328,7.73686256,1645.8,1645.4,7.4858633]
[1693517396229,7.73686256,1645.8,1645.4,2.9277433]
[1693517396230,12.29391256,1645.8,1645.4,2.9277433]
[1693517397130,13.55048152,1645.8,1645.4,2.9277433]
[1693517397336,12.29391256,1645.8,1645.4,2.9277433]
[1693517398158,5.49797844,1645.8,1645.4,7.4858933]
[1693517398292,5.49797844,1645.8,1645.4,12.0440533]
[1693517399721,10.05502844,1645.8,1645.4,12.0440533]
[1693517400113,10.05502844,1645.8,1645.4,7.4858933]
[1693517400315,10.05502844,1645.8,1645.4,2.9277433]
[1693517400528,10.05502844,1645.8,1645.4,7.4858033]
[1693517401449,10.05502844,1645.8,1645.4,2.9277433]
[1693517401642,12.29391556,1645.8,1645.4,2.9277433]
[1693517401847,12.29391556,1645.8,1645.4,7.4858233]
[1693517402151,12.29391556,1645.8,1645.4,2.9277433]
[1693517403023,0.94092844,1645.7,1645.1,11.05505967]
[1693517403291,4.55775,1645.6,1645.2,7.9662233]
[1693517403496,7.20465,1645.6,1645.2,12.5248133]
[1693517406712,2.6469,1645.6,1645.2,17.0835233]
[1693517413074,0.94092844,1645.8,1645.2,17.0835233]
[1693517413390,5.82802844,1645.8,1645.4,13.67406]
[1693517413565,5.82802844,1645.8,1645.5,2.9277433]
[1693517413767,5.82802844,1645.8,1645.6,4.5576]
[1693517414086,5.82802844,1645.8,1645.6,9.1152]
[1693517414498,5.82802844,1645.8,1645.6,4.5576]
[1693517416110,2.1974974,1645.9,1645.6,16.6005433]
[1693517416264,4.9428974,1645.9,1645.6,18.71636363]
[1693517417613,3.68632844,1645.9,1645.6,18.71636363]
[1693517422703,4.9428974,1645.9,1645.6,18.71636363]
[1693517425183,3.68632844,1645.9,1645.6,18.71636363]
[1693517425906,3.68632844,1645.9,1645.7,2.9277433]
[1693517426110,3.68632844,1645.9,1645.8,4.55705]
[1693517433819,3.68632844,1645.9,1645.7,13.91382966]
[1693517434719,3.68632844,1645.9,1645.7,9.35655966]
[1693517434890,3.68632844,1645.9,1645.7,7.4849233]
[1693517436350,14.0565774,1645.9,1645.5,4.55783]
[1693517436545,12.80000844,1645.9,1645.5,12.0433333]
[1693517436686,4.9428974,1645.9,1645.6,2.9277433]
[1693517436887,4.9428974,1645.9,1645.7,4.55733]
[1693517437132,4.9428974,1645.9,1645.7,2.9277433]
[1693517437297,15.85121152,1645.9,1645.7,2.9277433]
[1693517437712,11.29433152,1645.9,1645.7,2.9277433]
[1693517438539,11.29433152,1645.9,1645.4,4.55791]
[1693517438540,0.94092844,1645.8,1645.4,4.55791]
[1693517438832,0.94092844,1645.8,1645.6,4.55759]
[1693517439032,0.94092844,1645.8,1645.6,7.4853333]
[1693517439233,10.35340308,1645.9,1645.6,7.4853333]
[1693517439234,11.29433152,1645.9,1645.6,7.4853333]
[1693517440115,0.94092844,1645.8,1645.6,7.4853333]
[1693517440937,0.94092844,1645.8,1645.6,4.55759]
[1693517450460,0.94092844,1645.8,1645.6,9.11519]
[1693517451213,0.94092844,1645.8,1645.5,4.55773]
[1693517451418,0.94092844,1645.8,1645.5,9.11541]
[1693517451858,3.08072844,1645.8,1645.5,4.55768]
[1693517452019,4.3372974,1645.8,1645.5,4.55768]
[1693517453565,6.29348993,1645.8,1645.5,4.55768]
[1693517453963,0.94092844,1645.7,1645.5,4.55768]
[1693517454135,0.94092844,1645.7,1645.5,12.0433033]
[1693517454347,3.39636896,1645.8,1645.5,12.0433033]
[1693517454348,4.34849696,1645.8,1645.5,16.6011833]
[1693517455068,0.94658441,1645.7,1645.5,16.6011833]
[1693517455372,0.94658441,1645.7,1645.5,18.71710863]
[1693517460526,0.94658441,1645.7,1645.6,3.4077433]
[1693517460767,0.94658441,1645.7,1645.6,12.5229433]
[1693517466081,0.94658441,1645.7,1645.6,7.9653433]
[1693517470602,5.50391441,1645.7,1645.3,6.26677233]
[1693517470910,5.50391441,1645.7,1645.4,7.4857533]
[1693517471111,2.726,1645.6,1645.4,7.4857533]
[1693517473372,2.726,1645.6,1645.4,4.55801]
[1693517473571,2.726,1645.6,1645.4,9.11617]
[1693517474571,0.7226097,1645.6,1645.4,9.11617]
[1693517474775,0.7226097,1645.6,1645.1,11.05492967]
[1693517474776,6.22681411,1645.6,1645.1,4.55872]
[1693517475093,7.48892666,1645.6,1645.2,12.0447833]
[1693517475271,0.74889267,1645.5,1645.2,7.4862233]
[1693517475475,2.89029267,1645.5,1645.2,7.4862233]
[1693517475696,7.44818267,1645.5,1645.2,2.9277433]
[1693517476307,7.44818267,1645.5,1645.2,7.4864533]
[1693517476714,2.6733,1645.4,1645.2,7.4864533]
[1693517477083,2.6733,1645.4,1645.2,2.9277433]
[1693517477693,2.6733,1645.4,1645.2,7.4863933]
[1693517478629,2.6733,1645.4,1645.2,2.9277433]
[1693517481607,2.6733,1645.4,1645.1,9.11756]
[1693517481924,2.6733,1645.4,1645.1,4.55872]
[1693517482126,2.6733,1645.4,1645.1,9.11771]
[1693517484635,3.32431771,1645.4,1645.1,4.55872]
[1693517484994,3.32431771,1645.4,1645.1,9.11771]
[1693517490259,3.32431771,1645.4,1645.1,4.55872]
[1693517490430,7.88248771,1645.4,1645.1,4.55872]
[1693517490626,2.6733,1645.4,1645.1,9.11771]
[1693517490956,2.6733,1645.4,1645.1,13.6767]
[1693517495049,2.6733,1645.4,1645.1,9.11771]
[1693517497910,2.6733,1645.4,1645.1,16.6044433]
[1693517498500,2.6733,1645.4,1645.1,12.0454533]
[1693517498797,2.6733,1645.4,1645.2,5.76306533]
[1693517499171,2.6733,1645.4,1645.2,8.69080863]
[1693517499382,0.94658441,1645.6,1645.2,17.80822863]
[1693517499574,2.20869696,1645.7,1645.3,3.4077433]
[1693517499900,2.7704,1645.6,1645.4,9.1162]
[1693517500705,2.7704,1645.6,1645.4,16.6021033]
[1693517501210,0.94658441,1645.7,1645.4,16.6021033]
[1693517501366,3.64958441,1645.7,1645.4,16.6021033]
[1693517504366,0.94658441,1645.7,1645.5,2.9277433]
[1693517504608,2.83975324,1645.8,1645.6,14.1528]
[1693517504609,2.20869696,1645.8,1645.6,14.1528]
[1693517504904,0.94658441,1645.8,1645.7,4.3430233]
[1693517505083,0.94658441,1645.8,1645.7,18.4950133]
[1693517506406,1.26211255,1645.9,1645.7,18.4950133]
[1693517506407,2.20869696,1645.9,1645.7,18.4950133]
[1693517507603,2.20869696,1645.9,1645.8,0.48]
[1693517507794,2.20869696,1645.9,1645.8,12.5218433]
[1693517508106,2.20869696,1645.9,1645.8,14.37128863]
[1693517510106,2.20869696,1645.9,1645.8,18.92833863]
[1693517510271,0.94658441,1646.0,1645.8,18.92833863]
[1693517510466,0.94658441,1646.0,1645.9,16.5980533]
[1693517511072,0.94658441,1646.0,1645.9,17.0780533]
[1693517511279,0.94658441,1646.0,1645.9,18.97080316]
[1693517513402,4.98419696,1646.1,1645.9,18.97080316]
[1693517514569,3.72208441,1646.1,1645.9,18.97080316]
[1693517515904,0.94658441,1646.1,1645.9,18.97080316]
[1693517516124,5.98058441,1646.2,1645.9,18.97080316]
[1693517516325,5.98058441,1646.2,1646.0,1.89708032]
[1693517516526,5.98058441,1646.2,1646.1,9.11244]
[1693517517630,5.034,1646.2,1646.1,9.11244]
[1693517517827,5.034,1646.2,1646.1,4.55622]
[1693517518032,5.034,1646.2,1646.1,9.11244]
[1693517518328,5.034,1646.2,1646.1,4.55622]
[1693517518533,5.98058441,1646.2,1646.1,4.55622]
[1693517518732,5.034,1646.2,1646.1,4.55622]
[1693517518888,5.034,1646.2,1646.1,6.40559436]
[1693517520890,5.034,1646.2,1646.1,10.96181436]
[1693517521100,5.034,1646.2,1646.1,6.40559436]
[1693517521736,5.034,1646.2,1646.1,10.96181436]
[1693517522991,0.94658441,1646.3,1646.1,18.92577766]
[1693517523197,32.66162194,1646.5,1646.3,9.11134]
[1693517523198,34.33318441,1646.5,1646.3,9.11134]
[1693517523435,5.0438,1646.5,1646.3,12.0390833]
[1693517523646,2.2572,1646.5,1646.3,12.0390833]
[1693517523844,2.2572,1646.5,1646.3,16.5947533]
[1693517524043,3.73318441,1646.6,1646.5,4.55511]
[1693517524044,2.7866,1646.6,1646.5,4.55511]
[1693517524216,2.7866,1646.6,1646.5,9.11022]
[1693517526631,2.3582,1646.7,1646.5,16.5930733]
[1693517526830,2.3582,1646.7,1646.6,3.4077433]
[1693517527016,2.3582,1646.7,1646.6,7.9625833]
[1693517527216,2.3582,1646.7,1646.6,14.22470363]
[1693517527428,0.101,1646.7,1646.6,14.22470363]
[1693517527659,0.101,1646.7,1646.6,18.77954363]
[1693517531052,0.101,1646.7,1646.6,25.18554363]
[1693517533828,0.101,1646.7,1646.6,18.77954363]
[1693517534038,0.101,1646.7,1646.6,7.9625833]
[1693517537140,0.101,1646.7,1646.6,12.5174233]
[1693517541456,0.101,1646.7,1646.6,23.4782633]
[1693517541675,0.101,1646.7,1646.6,17.0722633]
[1693517542666,0.101,1646.7,1646.6,23.4782633]
[1693517542830,0.101,1646.7,1646.6,26.28158863]
[1693517544533,0.101,1646.7,1646.6,15.32074863]
[1693517545981,0.101,1646.7,1646.6,19.87558863]
[1693517549059,0.101,1646.7,1646.6,15.32074863]
[1693517549242,0.101,1646.7,1646.6,12.5174233]
[1693517551048,0.101,1646.7,1646.6,7.9625833]
[1693517551243,0.101,1646.7,1646.6,12.5174233]
[1693517554689,0.36031496,1646.7,1646.6,12.5174233]
[1693517554898,0.101,1646.7,1646.6,12.5174233]
[1693517555251,0.101,1646.7,1646.6,14.22466163]
[1693517555891,0.101,1646.7,1646.6,18.77950163]
[1693517557288,0.101,1646.7,1646.6,12.5174233]
[1693517559201,0.101,1646.7,1646.6,18.9234233]
[1693517559506,0.101,1646.7,1646.6,23.4782633]
[1693517559700,0.101,1646.7,1646.6,12.5174233]
[1693517560299,0.3654739,1646.7,1646.6,12.5174233]
[1693517560501,0.101,1646.7,1646.6,14.22466463]
[1693517561401,0.101,1646.7,1646.6,20.63066463]
[1693517561700,0.101,1646.7,1646.6,25.18550463]
[1693517564370,30.701,1647.1,1646.8,6.406]
[1693517564606,30.701,1647.1,1646.9,17.0697733]
[1693517564607,0.101,1647.1,1646.9,17.0697733]
[1693517564809,0.101,1647.1,1647.0,1.70697733]
[1693517564966,0.101,1647.1,1647.0,18.77591063]
[1693517572125,0.101,1647.1,1647.0,25.18191063]
[1693517575321,0.35671831,1647.1,1647.0,25.18191063]
[1693517576298,0.35671831,1647.1,1647.0,32.73564063]
[1693517578316,8.31e-06,1647.1,1647.0,32.73564063]
[1693517578628,0.25563436,1647.1,1647.0,32.73564063]
[1693517578828,0.101,1647.3,1647.2,9.406]
[1693517579126,0.101,1647.3,1647.2,34.9670633]
[1693517580541,0.101,1647.3,1647.2,30.4138833]
[1693517580833,0.101,1647.3,1647.2,7.4809233]
[1693517581002,2.6997,1647.3,1647.2,7.4809233]
[1693517581338,2.6997,1647.3,1647.2,12.0341033]
[1693517582427,2.6997,1647.3,1647.2,2.9277433]
[1693517582790,2.6997,1647.3,1647.0,4.55364]
[1693517583115,3.661305,1647.3,1647.0,16.5889133]
[1693517583321,2.6997,1647.3,1647.0,16.5889133]
[1693517584628,2.6997,1647.3,1646.5,6.13852794]
[1693517584629,16.3585,1647.3,1646.5,6.13852794]
[1693517584923,13.66167,1647.0,1646.3,9.111]
[1693517585149,1.366167,1646.9,1646.3,9.111]
[1693517585447,6.168267,1646.9,1646.3,13.66667]
[1693517585749,4.8021,1646.9,1646.5,13.66501]
[1693517586049,0.27051832,1646.8,1646.5,16.5927533]
[1693517587502,0.27051832,1646.8,1646.5,2.9277433]
[1693517587503,9.37928832,1646.8,1646.5,2.9277433]
[1693517587853,4.82479832,1646.8,1646.5,7.4828233]
[1693517588314,4.82479832,1646.8,1646.5,2.9277433]
[1693517588640,6.69833615,1646.8,1646.5,2.9277433]
[1693517588801,11.25282615,1646.8,1646.5,2.9277433]
[1693517590454,11.25282615,1646.8,1646.5,7.4828533]
[1693517591651,6.69833615,1646.8,1646.5,7.4828533]
[1693517591957,4.82479832,1646.8,1646.5,7.4828533]
[1693517593344,4.82479832,1646.8,1646.5,12.0379633]
[1693517593547,4.82479832,1646.8,1646.5,7.4828533]
[1693517593846,9.37928832,1646.8,1646.5,2.9277433]
[1693517594211,13.93377832,1646.8,1646.5,2.9277433]
[1693517594410,11.25287615,1646.8,1646.5,2.9277433]
[1693517595288,9.37928832,1646.8,1646.5,2.9277433]
[1693517595571,0.27051832,1646.8,1646.6,2.9277433]
[1693517596076,0.27051832,1646.8,1646.7,4.55456]
[1693517602529,4.82489832,1646.8,1646.6,2.9277433]
[1693517603146,4.82489832,1646.8,1646.4,4.5552]
[1693517603339,4.82489832,1646.8,1646.5,7.4827333]
[1693517603798,15.80708915,1646.8,1646.2,4.55582]
[1693517603935,15.80708915,1646.8,1646.2,2.9277433]
[1693517604139,2.1325,1646.7,1646.2,2.9277433]
[1693517604340,9.10991,1646.6,1646.2,7.4836533]
[1693517604540,11.77001,1646.6,1646.2,7.4836533]
[1693517604755,13.88212302,1646.6,1646.2,7.4836533]
[1693517605168,9.32715302,1646.6,1646.2,12.0395933]
[1693517606954,13.88212302,1646.6,1646.2,12.0395933]
[1693517607790,13.88212302,1646.6,1646.2,7.4836533]
[1693517608079,18.43709302,1646.6,1646.2,2.9277433]
[1693517608290,1.8437093,1646.5,1646.2,2.9277433]
[1693517608449,1.8437093,1646.5,1646.0,4.55647]
[1693517608451,9.11078,1646.4,1646.0,4.55647]
[1693517608644,9.11078,1646.4,1646.1,3.4077433]
[1693517608645,13.66617,1646.4,1646.1,3.4077433]
[1693517608991,2.7395,1646.3,1646.1,3.4077433]
[1693517609285,11.85109,1646.3,1646.0,4.55649]
[1693517609486,13.95359,1646.3,1646.0,7.4842333]
[1693517609982,9.39767,1646.3,1646.0,7.4842033]
[1693517612412,20.359879,1646.3,1645.8,4.55691]
[1693517612618,18.50901,1646.3,1645.9,2.9277433]
[1693517613693,13.95334,1646.3,1645.9,2.9277433]
[1693517613913,18.50901,1646.3,1645.9,2.9277433]
[1693517614122,18.50901,1646.3,1645.8,4.55703]
[1693517614278,1.850901,1646.2,1645.8,2.9277433]
[1693517614483,9.1125,1646.1,1645.8,2.9277433]
[1693517615594,4.55623,1646.1,1645.8,2.9277433]
[1693517615774,4.55623,1646.1,1645.8,7.4847533]
[1693517616384,4.55623,1646.1,1645.8,4.55701]
[1693517617321,5.6525381,1646.1,1645.6,5.05295968]
[1693517617477,16.9418281,1646.1,1645.7,3.4077433]
[1693517617682,4.55677,1645.9,1645.7,3.4077433]
[1693517617876,7.29395,1646.0,1645.6,4.55746]
[1693517618084,7.29395,1646.0,1645.6,7.4852033]
[1693517618314,11.85065,1646.0,1645.6,7.4852033]
[1693517618475,16.40735,1646.0,1645.6,2.9277433]
[1693517618680,18.83101781,1646.0,1645.6,2.9277433]
[1693517619718,9.71761781,1646.0,1645.6,7.4852533]
[1693517620078,4.8191392,1645.9,1645.6,7.4852533]
[1693517620279,7.0403392,1645.9,1645.6,7.4852533]
[1693517620494,7.0403392,1645.9,1645.6,2.9277433]
[1693517621336,7.0403392,1645.9,1645.6,7.4853333]
[1693517621782,7.0402092,1645.9,1645.6,7.4853333]
[1693517621984,11.5969792,1645.9,1645.6,2.9277433]
[1693517623535,7.0402092,1645.9,1645.6,7.4853033]
[1693517624296,7.0402092,1645.9,1645.6,8.68960563]
[1693517624945,0.2622392,1645.9,1645.7,3.4077433]
[1693517625148,0.2622392,1645.9,1645.8,13.67115]
[1693517625350,0.2622392,1645.9,1645.8,17.0788933]
[1693517629047,2.7373,1646.0,1645.8,17.0788933]
[1693517629348,0.24241673,1645.9,1645.8,14.15115]
[1693517631825,0.24241673,1645.9,1645.8,17.0788933]
[1693517632771,0.24241673,1645.9,1645.8,18.1351176]
[1693517633059,0.24241673,1645.9,1645.8,18.13511698]
[1693517633261,0.24241673,1645.9,1645.8,17.0788933]
[1693517633469,0.24241673,1645.9,1645.8,19.24249763]
[1693517635565,2.5419,1646.1,1645.8,19.24249763]
[1693517635729,2.5419,1646.1,1646.0,9.113]
[1693517636433,2.78446913,1646.1,1646.0,9.113]
[1693517638845,2.78446913,1646.1,1646.0,4.5565]
[1693517641158,3.29567604,1646.1,1645.8,4.55702]
[1693517641398,12.40811604,1646.1,1645.7,9.11435]
[1693517641557,12.40811604,1646.1,1645.7,12.0420933]
[1693517641775,12.40811604,1646.1,1645.7,4.55715]
[1693517642288,1.2408116,1646.0,1645.4,8.19410408]
[1693517642586,13.67095,1645.9,1645.5,1.05636521]
[1693517642752,11.42106,1645.9,1645.5,4.55778]
[1693517642954,2.6711,1645.8,1645.5,4.55778]
[1693517643282,8.637496,1645.8,1645.4,7.4856633]
[1693517643445,8.637496,1645.8,1645.5,4.55786]
[1693517643649,8.637496,1645.8,1645.5,9.11574]
[1693517644372,13.194676,1645.8,1645.5,4.55786]
[1693517644579,13.194676,1645.8,1645.4,7.4856633]
[1693517644974,13.194676,1645.8,1645.4,2.9277433]
[1693517645192,1.3194676,1645.7,1645.4,2.9277433]
[1693517645395,9.11512,1645.7,1645.4,2.9277433]
[1693517645602,11.35842,1645.7,1645.4,2.9277433]
[1693517646184,6.80086,1645.7,1645.4,12.0439333]
[1693517646885,6.80086,1645.7,1645.4,7.4857733]
[1693517647592,11.35796,1645.7,1645.3,0.1]
[1693517647803,1.135796,1645.6,1645.3,3.0277433]
[1693517647971,5.693636,1645.6,1645.3,3.0277433]
[1693517648169,10.251476,1645.6,1645.3,3.0277433]
[1693517648797,10.251476,1645.6,1645.3,7.5861533]
[1693517648990,9.11568,1645.6,1645.3,7.5861533]
[1693517649305,9.11568,1645.6,1645.3,3.0277433]
[1693517650201,0.22372017,1645.5,1645.3,3.0277433]
[1693517650411,0.22372017,1645.5,1645.3,0.1]
[1693517650598,2.93002017,1645.5,1645.3,4.65843]
[1693517652307,3.67880319,1645.5,1645.3,4.65843]
[1693517652466,3.67880319,1645.5,1645.3,9.21686]
[1693517652808,2.93002017,1645.5,1645.3,4.65843]
[1693517653317,2.93002017,1645.5,1645.3,9.21686]
[1693517653603,2.93002017,1645.5,1645.3,4.65843]
[1693517654187,2.93002017,1645.5,1645.3,9.21686]
[1693517654507,0.22372017,1645.5,1645.4,1.05647588]
[1693517654672,0.22372017,1645.5,1645.4,14.73095588]
[1693517656771,0.22372017,1645.5,1645.4,10.17279588]
[1693517662520,0.22372017,1645.5,1645.4,9.11632]
[1693517665397,0.22372017,1645.5,1645.4,13.71430963]
[1693517665603,30.6,1645.9,1645.6,3.0]
[1693517665822,30.6,1645.9,1645.7,21.6370633]
[1693517666332,30.6,1646.3,1645.7,21.6370633]
[1693517666563,10.8532611,1646.4,1645.9,13.66969]
[1693517666762,9.5920384,1646.4,1645.9,16.5974333]
[1693517666946,10.8532611,1646.4,1645.9,16.5974333]
[1693517668258,6.2977111,1646.4,1645.9,16.5974333]
[1693517668445,5.0364884,1646.4,1645.9,16.5974333]
[1693517668647,9.33943735,1646.4,1645.9,16.5974333]
[1693517668848,2.7518,1646.3,1645.9,16.5974333]
[1693517669153,4.9913,1646.3,1645.9,16.5974333]
[1693517669760,9.54701,1646.3,1645.9,16.5974333]
[1693517671114,4.9913,1646.3,1645.9,16.5974333]
[1693517671320,4.9913,1646.3,1646.1,9.11244]
[1693517674658,4.9913,1646.3,1646.1,13.66866]
[1693517674980,31.8612227,1646.7,1646.1,18.22488]
[1693517675201,2.6699,1646.5,1646.1,18.22488]
[1693517675394,2.6699,1646.5,1646.2,4.7502313]
[1693517675678,2.6699,1646.5,1646.3,13.66701]
[1693517676257,2.6699,1646.5,1646.3,16.5947533]
[1693517682961,2.6699,1646.5,1646.3,9.11134]
[1693517684993,2.6699,1646.5,1646.3,13.66701]
[1693517686215,11.78019,1646.5,1646.1,4.55598]
[1693517686533,11.78019,1646.5,1646.2,4.55592]
[1693517686534,1.178019,1646.4,1646.2,4.55592]
[1693517687793,1.178019,1646.4,1646.2,9.11186]
[1693517689277,10.288939,1646.4,1646.0,4.55625]
[1693517689483,14.844469,1646.4,1645.9,4.55663]
[1693517689726,14.844469,1646.4,1645.8,4.55698]
[1693517689727,2.3184,1646.3,1645.8,4.55698]
[1693517690026,4.55596,1646.2,1645.9,9.11353]
[1693517690233,0.455596,1646.1,1645.8,4.55698]
[1693517690439,5.011926,1646.1,1645.6,9.11504]
[1693517690589,2.3184,1646.0,1645.6,12.0427833]
[1693517690796,6.87493,1646.0,1645.6,12.0427833]
[1693517690997,2.6602,1645.9,1645.6,12.0427833]
[1693517693800,2.6602,1645.9,1645.6,16.6003833]
[1693517696428,2.6602,1645.9,1645.6,12.0427833]
[1693517696832,7.21698,1645.9,1645.6,7.4852033]
[1693517697047,2.6602,1645.9,1645.6,12.0428033]
[1693517697211,2.6602,1645.9,1645.6,13.70286963]
[1693517698706,2.6602,1645.9,1645.6,9.11506]
[1693517700366,2.6602,1645.9,1645.6,13.67266]
[1693517701974,2.6602,1645.9,1645.6,16.6004033]
[1693517702441,4.9465,1646.1,1645.7,2.9277433]
[1693517702647,4.9465,1646.1,1645.8,9.11398]
[1693517702873,4.9465,1646.1,1645.8,12.0417233]
[1693517705289,4.9465,1646.1,1645.8,18.25866163]
[1693517707571,4.55608,1646.2,1645.8,18.25866163]
[1693517707572,2.7903,1646.2,1645.9,3.4077433]
[1693517707905,30.6,1646.4,1646.0,18.226]
[1693517708187,48.42,1646.8,1646.2,13.66767]
[1693517708188,2.7903,1646.6,1646.2,13.66767]
[1693517708382,2.7903,1646.6,1646.4,9.11078]
[1693517710283,48.42,1646.8,1646.4,16.5939133]
[1693517710492,53.3421,1646.8,1646.4,16.5939133]
[1693517711961,53.3421,1646.8,1646.4,2.9277433]
[1693517712299,53.3421,1646.8,1646.4,17.02336433]
[1693517712882,67.00504,1646.8,1646.3,4.55564]
[1693517713183,67.00504,1646.8,1646.3,7.4833833]
[1693517715287,67.00504,1646.8,1645.9,7.55665]
[1693517715491,67.00504,1646.8,1645.8,4.55685]
[1693517715492,6.53427778,1646.7,1645.8,4.55685]
[1693517715697,6.53427778,1646.7,1645.9,9.11354]
[1693517715698,13.66593,1646.5,1645.9,9.11354]
[1693517715852,14.27246448,1646.5,1645.9,4.55677]
[1693517716057,4.7832,1646.4,1645.9,4.55677]
[1693517716279,13.66739,1646.3,1645.6,4.55743]
[1693517716560,13.66739,1646.3,1645.6,4.55749]
[1693517716891,1.366739,1646.2,1645.6,4.5576]
[1693517717088,1.366739,1646.2,1645.5,5.19406478]
[1693517717089,13.66917,1646.1,1645.5,5.19406478]
[1693517717289,13.66917,1646.1,1645.6,9.11513]
[1693517717290,9.11273,1646.1,1645.6,9.11513]
[1693517717492,2.6268,1646.0,1645.6,7.4852733]
[1693517717695,4.55683,1645.9,1645.6,7.4852733]
[1693517717986,4.55683,1645.9,1645.6,2.9277433]
[1693517718192,9.11366,1645.9,1645.6,2.9277433]
[1693517719356,4.55683,1645.9,1645.6,2.9277433]
[1693517719553,2.6268,1646.0,1645.6,17.80476663]
[1693517720269,7.1833,1646.0,1645.6,17.80476663]
[1693517720474,9.4903,1646.0,1645.6,13.24716663]
[1693517720689,14.0468,1646.0,1645.6,8.68956663]
[1693517720873,14.0468,1646.0,1645.6,13.24716663]
[1693517721071,9.4903,1646.0,1645.6,13.24716663]
[1693517721965,14.0468,1646.0,1645.6,13.24716663]
[1693517723743,9.4903,1646.0,1645.6,13.24716663]
[1693517725124,9.4903,1646.0,1645.6,17.80476663]
[1693517725848,9.4903,1646.0,1645.6,13.24716663]
[1693517726751,9.4903,1646.0,1645.7,1.32471666]
[1693517726949,4.9338,1646.0,1645.8,4.55705]
[1693517727318,9.49032,1646.0,1645.7,5.88196666]
[1693517730050,14.04684,1646.0,1645.7,4.55725]
[1693517730250,9.49032,1646.0,1645.7,4.55725]
[1693517730678,14.04682,1646.0,1645.6,13.24703663]
[1693517730983,9.4903,1646.0,1645.6,13.24703663]
[1693517732343,14.0468,1646.0,1645.6,13.24703663]
[1693517732541,9.4903,1646.0,1645.6,13.24703663]
[1693517738088,9.4903,1646.0,1645.7,1.32470366]
[1693517738414,9.4903,1646.0,1645.7,5.88182366]
[1693517739491,9.4903,1646.0,1645.7,10.43915366]
[1693517741300,4.9338,1646.0,1645.7,10.43915366]
[1693517745278,4.9338,1646.0,1645.7,14.99648366]
[1693517745813,4.9338,1646.0,1645.7,5.88182366]
[1693517746016,10.894985,1646.0,1645.7,4.55712]
[1693517747790,4.9338,1646.0,1645.7,9.11445]
[1693517748330,4.9338,1646.0,1645.7,13.67178]
[1693517748621,4.9338,1646.0,1645.7,9.11445]
[1693517750613,4.9338,1646.0,1645.7,13.67178]
[1693517750819,4.9338,1646.0,1645.7,9.11445]
[1693517751438,10.439365,1646.0,1645.6,4.55734]
[1693517751722,19.552425,1646.0,1645.5,4.55775]
[1693517753530,19.552425,1646.0,1645.4,4.55801]
[1693517753730,19.552425,1646.0,1645.4,2.9277433]
[1693517754731,20.49913577,1646.0,1645.4,2.9277433]
[1693517754932,2.04991358,1645.9,1645.4,2.9277433]
[1693517755135,13.67145,1645.8,1645.4,2.9277433]
[1693517755638,2.5231,1645.7,1645.4,2.9277433]
[1693517755931,7.08066,1645.7,1645.4,2.9277433]
[1693517756538,7.08066,1645.7,1645.3,9.21656]
[1693517756707,7.08066,1645.7,1645.4,4.55813]
[1693517759846,11.63822,1645.7,1645.3,9.6638583]
[1693517760016,11.63822,1645.7,1645.4,1.05643127]
[1693517760339,11.63822,1645.7,1645.4,5.61458127]
[1693517760340,7.08066,1645.7,1645.4,5.61458127]
[1693517760574,11.63799,1645.7,1645.3,9.6638483]
[1693517760726,11.63799,1645.7,1645.4,1.05643427]
[1693517760937,7.08043,1645.7,1645.4,1.05643427]
[1693517761296,11.63776,1645.7,1645.4,1.05643427]
[1693517761904,7.08043,1645.7,1645.4,1.05643427]
[1693517762104,11.63776,1645.7,1645.4,1.05643427]
[1693517762319,7.08043,1645.7,1645.4,1.05643427]
[1693517762801,7.08043,1645.7,1645.4,2.12846453]